[Event "WYCC 2018 G18"]
[Site "Halkidiki"]
[Date "2018.10.20"]
[Round "1"]
[White "Obolentseva, Alexandra"]
[Black "Vlkova, Anezka"]
[Result "1-0"]
[ECO "E97"]
[WhiteElo "2298"]
[BlackElo "1925"]
[Annotator "NA"]
[PlyCount "83"]
[EventDate "2018.10.20"]
[EventType "swiss"]
[EventCountry "GRE"]
[SourceTitle "playchess.com"]
[Source "ChessBase"]
[SourceQuality "1"]
[TimeControl "40/5400+30:1800+30"]

1. d4 {[%emt 0:00:00]} Nf6 {[%emt 0:00:00]} 2. c4 {[%emt 0:00:00]} g6 {[%emt 0:00:00]} 3. Nc3 {[%emt 0:00:00]} Bg7 {[%emt 0:00:00]} 4. e4 {[%emt 0:00:00]} d6 {[%emt 0:00:00]} 5. Nf3 {[%emt 0:00:03]} O-O {[%emt 0:00:00]} 6. Be2 {[%emt 0:00:06]} e5 {[%emt 0:00:03]} 7. O-O {[%emt 0:00:07]} Nc6 {[%emt 0:00:10]} 8. d5 {[%emt 0:00:05]} Ne7 {[%emt 0:00:03]} 9. b4 {[%emt 0:00:06]} a5 {[%emt 0:00:05]} 10. bxa5 {[%emt 0:00:11]} c5 {[%emt 0:00:05]} 11. Nd2 {[%emt 0:00:48]} Rxa5 {[%emt 0:00:36]} 12. a4 {[%emt 0:00:10]} Ne8 {[%emt 0:01:23] E97: King's Indian: Classical Main Line (6...e5 7 0-0 Nc6): 8 Be3 and 8 d5 Ne7, not 9 Ne1} (12... Nd7 13. Nb5 Ra6 14. Ra3 f5 15. exf5 gxf5 16. Qc2 Ng6 17. Re1 Nf6 18. Nf1 Kh8 19. Ng3 Qd7 20. Bd3 {0-1 (30) Panelo Munoz,M (2373)-Grigoryan,K (2533) Barcelona 2016}) 13. Nb3 {[%emt 0:00:11]} Ra6 {[%emt 0:00:04]} 14. a5 {[%emt 0:01:09]} f5 {[%emt 0:03:06]} 15. Bd2 {[%emt 0:06:19]} Nf6 {[%emt 0:01:47]} 16. f3 {[%emt 0:00:18]} Bd7 {[%emt 0:06:34]} 17. Qc2 {[%emt 0:00:56]} f4 {[%emt 0:01:29]} 18. Na4 $146 {[%emt 0:00:36]} ({Predecessor:} 18. g4 h5 19. g5 Nh7 20. h4 Nxg5 21. hxg5 Nf5 22. exf5 Qxg5+ 23. Kh1 Qh4+ 24. Kg1 {½-½ (24) Henrichsen,J (2070)-Olsen,H (2300) Herlev 1997}) 18... Nc8 {[%emt 0:01:50] [#]} 19. Naxc5 $1 {[%emt 0:05:30]} dxc5 {[%emt 0:08:18]} 20. Nxc5 {[%emt 0:00:07]} Ra7 {[%emt 0:01:48]} 21. Bb4 {[%emt 0:04:59]} Re8 {[%emt 0:06:57]} 22. Nxd7 {[%emt 0:02:06]} Nxd7 {[%emt 0:05:59]} 23. c5 {[%emt 0:00:13]} Ne7 {[%emt 0:02:22]} 24. Bb5 {[%emt 0:01:48]} Kh8 {[%emt 0:09:08]} 25. Qa4 {[%emt 0:01:44]} Nf6 {[%emt 0:05:57]} 26. Bxe8 {[%emt 0:00:07]} Nxe8 {[%emt 0:00:24]} 27. Be1 {[%emt 0:00:19]} Nf6 {[%emt 0:09:40]} 28. Bf2 {[%emt 0:00:18]} Ra6 {[%emt 0:00:22]} 29. Qb5 {[%emt 0:00:47]} Bf8 {[%emt 0:10:41]} 30. Qxb7 {[%emt 0:01:02]} Rxa5 {[%emt 0:00:55]} 31. d6 {[%emt 0:00:13]} Neg8 {[%emt 0:00:46]} 32. Qc7 {[%emt 0:01:00]} Qxc7 {[%emt 0:07:43]} 33. dxc7 {[%emt 0:00:06]} Rxc5 {[%emt 0:00:05]} 34. Bxc5 {[%emt 0:00:24]} Bxc5+ {[%emt 0:00:05]} 35. Kh1 {[%emt 0:00:08]} Ne7 {[%emt 0:00:37]} 36. Rfc1 {[%emt 0:00:23]} Bd4 {[%emt 0:02:33]} 37. c8=Q+ {[%emt 0:00:24]} Nxc8 {[%emt 0:00:05]} 38. Rxc8+ {[%emt 0:00:06]} Kg7 {[%emt 0:00:05]} 39. Rb1 {[%emt 0:00:06]} g5 {[%emt 0:01:24]} 40. Rb7+ {[%emt 0:00:00]} Kg6 $18 {[%emt 0:00:00]} 41. Re7 {[%emt 0:00:33]} g4 {[%emt 0:04:04]} 42. Rc6 {[%emt 0:00:15]} 1-0

[Event "WYCC 2018 G18"]
[Site "Halkidiki"]
[Date "2018.10.20"]
[Round "1"]
[White "Sliwicka, Alicja"]
[Black "Kieu, Bich Thuy"]
[Result "1-0"]
[ECO "B09"]
[WhiteElo "2264"]
[BlackElo "1913"]
[Annotator "NA"]
[PlyCount "53"]
[EventDate "2018.10.20"]
[EventType "swiss"]
[EventCountry "GRE"]
[SourceTitle "playchess.com"]
[Source "ChessBase"]
[SourceQuality "1"]
[TimeControl "40/5400+30:1800+30"]

1. e4 {[%emt 0:00:00]} g6 {[%emt 0:00:00]} 2. d4 {[%emt 0:00:00]} Bg7 {[%emt 0:00:00]} 3. Nc3 {[%emt 0:00:00]} d6 {[%emt 0:00:08]} 4. f4 {[%emt 0:00:00]} Nf6 {[%emt 0:00:24]} 5. Nf3 {[%emt 0:00:12]} O-O {[%emt 0:00:22]} 6. Bd3 {[%emt 0:00:10]} c5 {[%emt 0:03:26]} 7. dxc5 {[%emt 0:01:32]} dxc5 {[%emt 0:00:08]} 8. e5 {[%emt 0:01:53]} Ne8 {[%emt 0:05:21] B09: Pirc-Ufimzew-Verteidigung (Dreibauernangriff)} (8... Nd5 9. Nxd5 Qxd5 10. Qe2 Bf5 11. Bxf5 gxf5 12. O-O Nc6 13. Rd1 Qe6 14. Be3 b6 15. Ng5 Qg6 16. h4 h5 17. Bf2 Rad8 18. Rxd8 Rxd8 {0-1 (43) Aronian,L (2813)-Svidler,P (2769) Stavanger 2013}) 9. Be3 {[%emt 0:01:54]} Qa5 {[%emt 0:04:16]} 10. O-O {[%emt 0:02:35]} Nc7 {[%emt 0:06:17]} 11. Nd2 {[%emt 0:05:24]} Be6 $146 {[%emt 0:10:26]} ({Vorgänger:} 11... Nc6 12. Nb3 Qb6 13. Bxc5 {1-0 (13) McAndrew,H-Wakeham,M IECG email 2004}) 12. Nb3 {[%emt 0:05:05]} Bxb3 {[%emt 0:08:34]} 13. axb3 {[%emt 0:00:21]} Qb6 {[%emt 0:00:32]} 14. Na4 {[%emt 0:01:31]} Qc6 {[%emt 0:00:57]} 15. Nxc5 {[%emt 0:01:30]} Rd8 {[%emt 0:00:53]} 16. Qe2 {[%emt 0:03:06]} Nd5 {[%emt 0:13:50]} 17. Be4 {[%emt 0:01:34]} Nd7 {[%emt 0:03:41]} 18. c4 {[%emt 0:12:32]} Nxc5 {[%emt 0:01:00]} 19. cxd5 {[%emt 0:06:52]} Qb6 {[%emt 0:01:17]} 20. Rfc1 $18 {[%emt 0:05:59]} Rdc8 {[%emt 0:01:59]} 21. Qc4 {[%emt 0:03:24]} Qxb3 {[%emt 0:04:37]} 22. Bxc5 {[%emt 0:00:44]} Qxc4 {[%emt 0:00:14]} 23. Rxc4 {[%emt 0:00:07]} b6 {[%emt 0:00:07]} 24. d6 {[%emt 0:00:54]} Rab8 {[%emt 0:00:05]} 25. d7 {[%emt 0:00:20]} Rxc5 {[%emt 0:00:31]} 26. Rxc5 {[%emt 0:00:12]} bxc5 {[%emt 0:00:04]} 27. Rxa7 {[%emt 0:00:20]} 1-0

[Event "WYCC 2018 G18"]
[Site "Halkidiki"]
[Date "2018.10.20"]
[Round "1"]
[White "Kiolbasa, Oliwia"]
[Black "Tsivelekidou, Evgenia"]
[Result "1-0"]
[ECO "C95"]
[WhiteElo "2254"]
[BlackElo "1891"]
[Annotator "NA"]
[PlyCount "75"]
[EventDate "2018.10.20"]
[EventType "swiss"]
[EventCountry "GRE"]
[SourceTitle "playchess.com"]
[Source "ChessBase"]
[SourceQuality "1"]
[TimeControl "40/5400+30:1800+30"]

1. e4 {[%emt 0:00:00]} e5 {[%emt 0:00:00]} 2. Nf3 {[%emt 0:00:00]} Nc6 {[%emt 0:00:00]} 3. Bb5 {[%emt 0:00:00]} a6 {[%emt 0:00:00]} 4. Ba4 {[%emt 0:00:07]} Nf6 {[%emt 0:00:00]} 5. O-O {[%emt 0:00:15]} Be7 {[%emt 0:00:08]} 6. Re1 {[%emt 0:00:16]} b5 {[%emt 0:00:07]} 7. Bb3 {[%emt 0:00:09]} d6 {[%emt 0:01:28]} 8. c3 {[%emt 0:00:07]} O-O {[%emt 0:00:07]} 9. h3 {[%emt 0:00:14]} Nb8 {[%emt 0:00:26]} 10. d4 {[%emt 0:00:18]} Nbd7 {[%emt 0:00:06]} 11. c4 {[%emt 0:00:19]} b4 {[%emt 0:07:13]} 12. Nbd2 {[%emt 0:12:40]} c5 {[%emt 0:02:58]} 13. d5 {[%emt 0:03:53]} Ne8 {[%emt 0:03:25]} 14. Nf1 $14 {[%emt 0:04:59]} g6 {[%emt 0:04:01]} 15. Bh6 {[%emt 0:02:45]} Ng7 {[%emt 0:02:21]} 16. Bc2 {[%emt 0:00:11]} f5 {[%emt 0:05:44]} 17. exf5 {[%emt 0:03:45]} gxf5 {[%emt 0:01:18]} 18. Ng3 {[%emt 0:01:05]} e4 {[%emt 0:13:30]} 19. Nd2 {[%emt 0:03:01]} Bg5 {[%emt 0:17:19]} 20. Bxg7 {[%emt 0:09:12]} Kxg7 {[%emt 0:00:13]} 21. Ndxe4 {[%emt 0:00:24]} fxe4 {[%emt 0:02:05]} 22. Nxe4 {[%emt 0:00:13]} Ne5 {[%emt 0:04:19]} 23. Qh5 {[%emt 0:04:39]} h6 {[%emt 0:05:45]} 24. Nxd6 {[%emt 0:06:25]} Qxd6 {[%emt 0:04:39]} 25. Rxe5 {[%emt 0:00:43]} Ra7 {[%emt 0:04:32]} 26. Rxg5+ {[%emt 0:11:33]} hxg5 {[%emt 0:00:15]} 27. Qh7+ {[%emt 0:00:13]} Kf6 {[%emt 0:00:10]} 28. Qg6+ {[%emt 0:04:09]} Ke7 {[%emt 0:00:59]} 29. Re1+ {[%emt 0:00:09]} Kd7 {[%emt 0:02:01]} 30. Qg7+ {[%emt 0:00:38]} Kd8 {[%emt 0:00:48]} 31. Qxa7 {[%emt 0:00:15]} g4 {[%emt 0:03:18]} 32. hxg4 {[%emt 0:03:05]} Rh8 {[%emt 0:02:14]} 33. g3 {[%emt 0:03:48]} Rh3 {[%emt 0:03:07]} 34. Kg2 {[%emt 0:03:38]} Bxg4 {[%emt 0:04:28]} 35. Qg7 {[%emt 0:01:13]} Bd7 {[%emt 0:02:04]} 36. Ba4 {[%emt 0:03:43]} Rh5 {[%emt 0:02:01]} 37. Bxd7 {[%emt 0:00:37]} Qxd7 {[%emt 0:00:24]} 38. Qf8+ {[%emt 0:00:11]} 1-0

[Event "WYCC 2018 G18"]
[Site "Halkidiki"]
[Date "2018.10.20"]
[Round "1"]
[White "Antolak, Julia"]
[Black "Dong, Khanh Linh"]
[Result "1-0"]
[ECO "B03"]
[WhiteElo "2240"]
[BlackElo "1879"]
[Annotator "NA"]
[PlyCount "65"]
[EventDate "2018.10.20"]
[EventType "swiss"]
[EventCountry "GRE"]
[SourceTitle "playchess.com"]
[Source "ChessBase"]
[SourceQuality "1"]
[TimeControl "40/5400+30:1800+30"]

1. e4 {[%emt 0:00:00]} Nf6 {[%emt 0:00:00]} 2. e5 {[%emt 0:00:00]} Nd5 {[%emt 0:00:11]} 3. d4 {[%emt 0:00:00]} d6 {[%emt 0:00:05]} 4. exd6 {[%emt 0:00:10]} exd6 {[%emt 0:00:55]} 5. c4 {[%emt 0:00:11]} Nb6 {[%emt 0:00:11]} 6. Nc3 {[%emt 0:00:07]} Be7 {[%emt 0:00:16]} 7. Bd3 {[%emt 0:00:10]} Nc6 {[%emt 0:00:15]} 8. Nge2 {[%emt 0:00:14]} Bg4 {[%emt 0:01:23]} 9. Be3 {[%emt 0:05:22]} Bf6 {[%emt 0:03:27]} 10. Qd2 {[%emt 0:15:48]} Nb4 {[%emt 0:11:25]} 11. b3 {[%emt 0:08:15]} Nxd3+ {[%emt 0:04:55]} 12. Qxd3 {[%emt 0:00:11]} Qe7 {[%emt 0:04:53]} 13. O-O {[%emt 0:05:19]} O-O {[%emt 0:04:20]} 14. Ng3 {[%emt 0:06:13]} c6 {[%emt 0:07:58]} 15. Rfe1 {[%emt 0:02:48]} Bg5 {[%emt 0:14:51]} 16. h3 {[%emt 0:06:28]} Bd7 {[%emt 0:03:28]} 17. d5 {[%emt 0:08:07]} Rfe8 {[%emt 0:10:55]} 18. Re2 {[%emt 0:21:39]} Bxe3 {[%emt 0:07:11]} 19. Rxe3 {[%emt 0:00:02]} Qf8 {[%emt 0:04:51]} 20. dxc6 {[%emt 0:02:09]} Rxe3 {[%emt 0:07:05]} 21. Qxe3 {[%emt 0:00:23]} Bxc6 {[%emt 0:00:26]} 22. Rd1 {[%emt 0:00:44]} Re8 {[%emt 0:01:31]} 23. Qd4 {[%emt 0:02:34]} Re6 {[%emt 0:01:11]} 24. b4 {[%emt 0:01:03]} Qe7 {[%emt 0:05:51]} 25. b5 {[%emt 0:01:09]} Re1+ {[%emt 0:02:13]} 26. Rxe1 {[%emt 0:00:36]} Qxe1+ {[%emt 0:00:03]} 27. Kh2 {[%emt 0:00:05]} Bd7 {[%emt 0:01:33]} 28. Nce4 {[%emt 0:03:41]} Qc1 {[%emt 0:01:43]} 29. Nxd6 {[%emt 0:00:31]} Be6 {[%emt 0:00:26]} 30. Ndf5 {[%emt 0:03:36]} f6 {[%emt 0:00:52]} 31. Qd8+ {[%emt 0:00:10]} Kf7 {[%emt 0:00:04]} 32. Qe7+ {[%emt 0:00:04]} Kg6 {[%emt 0:00:09]} 33. Qxg7# {[%emt 0:00:04]} 1-0

[Event "WYCC 2018 G18"]
[Site "Halkidiki"]
[Date "2018.10.20"]
[Round "1"]
[White "Dimitrova, Aleksandra"]
[Black "Nemcova, Kamila"]
[Result "0-1"]
[ECO "B90"]
[WhiteElo "2228"]
[BlackElo "1879"]
[Annotator "NA"]
[PlyCount "70"]
[EventDate "2018.10.20"]
[EventType "swiss"]
[EventCountry "GRE"]
[SourceTitle "playchess.com"]
[Source "ChessBase"]
[SourceQuality "1"]
[TimeControl "40/5400+30:1800+30"]

1. e4 {[%emt 0:00:00]} c5 {[%emt 0:00:00]} 2. Nf3 {[%emt 0:00:00]} d6 {[%emt 0:00:00]} 3. d4 {[%emt 0:00:00]} cxd4 {[%emt 0:00:00]} 4. Nxd4 {[%emt 0:00:00]} Nf6 {[%emt 0:00:05]} 5. Nc3 {[%emt 0:00:00]} a6 {[%emt 0:00:08]} 6. h4 {[%emt 0:00:00]} e5 {[%emt 0:00:51]} 7. Nb3 {[%emt 0:00:01]} Be6 {[%emt 0:02:47]} 8. f4 {[%emt 0:00:23]} exf4 {[%emt 0:00:33]} 9. Bxf4 {[%emt 0:00:05]} Nc6 {[%emt 0:04:22]} 10. Qd2 {[%emt 0:00:41]} Ne5 {[%emt 0:04:18]} 11. Nd4 {[%emt 0:08:56]} Be7 {[%emt 0:07:28]} 12. O-O-O {[%emt 0:09:55]} Rc8 {[%emt 0:06:29]} 13. Nf5 {[%emt 0:05:58]} Bxf5 {[%emt 0:08:10]} 14. exf5 {[%emt 0:00:03]} Qa5 {[%emt 0:10:00]} 15. Kb1 {[%emt 0:11:00]} Qb4 $16 {[%emt 0:12:09]} 16. Bg5 {[%emt 0:11:06]} h6 {[%emt 0:18:06]} 17. Be3 {[%emt 0:05:42]} O-O {[%emt 0:05:40]} 18. Bd4 {[%emt 0:08:31]} Nc6 {[%emt 0:06:00]} 19. Be2 {[%emt 0:02:05]} Rfd8 {[%emt 0:05:04]} 20. a3 {[%emt 0:06:33]} Qa5 {[%emt 0:02:43]} 21. g4 {[%emt 0:01:20]} Nd7 {[%emt 0:01:59]} 22. g5 {[%emt 0:11:04]} hxg5 {[%emt 0:02:37]} 23. hxg5 {[%emt 0:00:42]} Nxd4 {[%emt 0:00:52]} 24. Qxd4 {[%emt 0:04:34]} Bxg5 {[%emt 0:00:27]} 25. Qg4 {[%emt 0:00:42]} Bf6 {[%emt 0:00:55]} 26. Qh5 {[%emt 0:00:56]} g6 {[%emt 0:00:29]} 27. Qh7+ {[%emt 0:00:32]} Kf8 {[%emt 0:00:10]} 28. fxg6 {[%emt 0:00:15]} fxg6 {[%emt 0:00:10]} 29. Rxd6 {[%emt 0:02:55]} Qe5 {[%emt 0:01:06]} 30. Rxd7 {[%emt 0:01:39]} Rxd7 {[%emt 0:00:14]} 31. Qxd7 {[%emt 0:00:02]} Rxc3 {[%emt 0:00:58]} 32. Rh7 {[%emt 0:02:46]} Rc7 {[%emt 0:00:32]} 33. Rf7+ {[%emt 0:04:06]} Kg8 {[%emt 0:00:06]} 34. Rxf6 {[%emt 0:01:38]} Rxd7 {[%emt 0:00:12]} 35. Rxg6+ {[%emt 0:00:02]} Kf7 {[%emt 0:00:40]} 0-1

[Event "WYCC 2018 G18"]
[Site "Halkidiki"]
[Date "2018.10.20"]
[Round "1"]
[White "Martynkova, Olena"]
[Black "Nguyen, Hong Ngoc"]
[Result "1/2-1/2"]
[ECO "A40"]
[WhiteElo "2188"]
[BlackElo "1861"]
[Annotator "NA"]
[PlyCount "79"]
[EventDate "2018.10.20"]
[EventType "swiss"]
[EventCountry "GRE"]
[SourceTitle "playchess.com"]
[Source "ChessBase"]
[SourceQuality "1"]
[TimeControl "40/5400+30:1800+30"]

1. d4 {[%emt 0:00:00]} e6 {[%emt 0:00:00]} 2. c4 {[%emt 0:00:20]} f5 {[%emt 0:00:21]} 3. Nf3 {[%emt 0:01:11]} Nf6 {[%emt 0:00:34]} 4. g3 {[%emt 0:00:45]} d5 {[%emt 0:01:08]} 5. Bg2 {[%emt 0:00:57]} c6 {[%emt 0:00:50]} 6. Bf4 {[%emt 0:01:37]} Bd6 {[%emt 0:01:49]} 7. Nbd2 {[%emt 0:10:59]} Bxf4 {[%emt 0:03:22]} 8. gxf4 {[%emt 0:00:04]} Qe7 {[%emt 0:01:30]} 9. e3 {[%emt 0:12:39]} Nbd7 {[%emt 0:07:52]} 10. O-O {[%emt 0:10:53]} O-O {[%emt 0:01:16]} 11. Ne5 {[%emt 0:13:58]} Ne4 {[%emt 0:04:27]} 12. Nxd7 {[%emt 0:07:42]} Bxd7 {[%emt 0:00:27]} 13. Nf3 {[%emt 0:08:43]} Kh8 {[%emt 0:02:12]} 14. Ne5 {[%emt 0:01:12]} Be8 {[%emt 0:00:31]} 15. f3 {[%emt 0:04:17]} Bh5 {[%emt 0:03:15]} 16. Qe1 {[%emt 0:01:10]} Nd6 {[%emt 0:00:48]} 17. c5 {[%emt 0:00:55]} Nf7 {[%emt 0:01:09]} 18. Nd3 {[%emt 0:04:56]} Rg8 {[%emt 0:08:33]} 19. Kh1 {[%emt 0:01:50]} h6 {[%emt 0:03:33]} 20. Qg3 {[%emt 0:02:28]} Qf6 {[%emt 0:05:18]} 21. Qh3 {[%emt 0:06:18]} Bg6 {[%emt 0:00:46]} 22. Ne5 {[%emt 0:01:22]} Bh7 {[%emt 0:01:28]} 23. Nxf7+ {[%emt 0:03:41]} Qxf7 {[%emt 0:00:11]} 24. Rg1 {[%emt 0:00:25]} Qf6 {[%emt 0:01:17]} 25. Bf1 {[%emt 0:00:28]} g5 {[%emt 0:00:43]} 26. fxg5 {[%emt 0:01:01]} hxg5 {[%emt 0:00:51]} 27. Bd3 {[%emt 0:02:03]} Rg7 {[%emt 0:00:26]} 28. Rg2 {[%emt 0:00:48]} Rag8 {[%emt 0:01:04]} 29. Rag1 {[%emt 0:00:07]} e5 {[%emt 0:03:23]} 30. dxe5 {[%emt 0:01:32]} Qxe5 {[%emt 0:00:17]} 31. Bb1 {[%emt 0:00:35]} Qf6 {[%emt 0:02:26]} 32. b4 {[%emt 0:00:29]} Qf7 {[%emt 0:01:22]} 33. Qh6 {[%emt 0:00:24]} g4 {[%emt 0:02:04]} 34. fxg4 {[%emt 0:00:35]} Rxg4 {[%emt 0:02:03]} 35. Rxg4 {[%emt 0:00:23]} fxg4 {[%emt 0:00:33]} 36. Bxh7 {[%emt 0:00:39]} Qf3+ {[%emt 0:03:10]} 37. Rg2 {[%emt 0:00:11]} Qf1+ {[%emt 0:00:11]} 38. Rg1 {[%emt 0:00:10]} Qf3+ {[%emt 0:00:07]} 39. Rg2 {[%emt 0:00:17]} Qf1+ {[%emt 0:00:20]} 40. Rg1 {[%emt 0:00:00]} 1/2-1/2

[Event "WYCC 2018 G18"]
[Site "Halkidiki"]
[Date "2018.10.20"]
[Round "1"]
[White "Radeva, Viktoria"]
[Black "Muratova, Saltanat"]
[Result "0-1"]
[ECO "B39"]
[WhiteElo "2163"]
[BlackElo "1859"]
[Annotator "NA"]
[PlyCount "82"]
[EventDate "2018.10.20"]
[EventType "swiss"]
[EventCountry "GRE"]
[SourceTitle "playchess.com"]
[Source "ChessBase"]
[SourceQuality "1"]
[TimeControl "40/5400+30:1800+30"]

1. e4 {[%emt 0:00:00]} c5 {[%emt 0:00:00]} 2. Nf3 {[%emt 0:00:00]} Nc6 {[%emt 0:00:00]} 3. d4 {[%emt 0:00:03]} cxd4 {[%emt 0:00:00]} 4. Nxd4 {[%emt 0:00:06]} g6 {[%emt 0:00:03]} 5. c4 {[%emt 0:02:43]} Bg7 {[%emt 0:00:08]} 6. Be3 {[%emt 0:00:16]} Nf6 {[%emt 0:00:27]} 7. Nc3 {[%emt 0:00:17]} Ng4 {[%emt 0:00:51]} 8. Qxg4 {[%emt 0:00:25]} Nxd4 {[%emt 0:00:13]} 9. Qd1 {[%emt 0:00:28]} Ne6 {[%emt 0:00:52]} 10. Qd2 {[%emt 0:02:16]} b6 {[%emt 0:02:04]} 11. Be2 {[%emt 0:03:23]} Bb7 {[%emt 0:00:26]} 12. O-O {[%emt 0:09:21]} O-O {[%emt 0:00:14]} 13. f3 $14 {[%emt 0:05:44] LiveBook: 16 Games} Bc6 {[%emt 0:03:14]} 14. Rfd1 {[%emt 0:07:34]} a5 {[%emt 0:02:21]} 15. Rac1 {[%emt 0:04:25]} Nc5 {[%emt 0:01:53]} 16. b3 {[%emt 0:07:49]} Rc8 {[%emt 0:15:24]} 17. Rb1 {[%emt 0:07:19]} Rb8 {[%emt 0:30:48]} 18. a3 {[%emt 0:10:59]} f5 {[%emt 0:12:15]} 19. exf5 {[%emt 0:06:12]} Rxf5 {[%emt 0:02:20]} 20. b4 {[%emt 0:01:53]} Na4 {[%emt 0:01:05]} 21. Nxa4 {[%emt 0:05:44]} Bxa4 {[%emt 0:00:06]} 22. Rdc1 {[%emt 0:01:05]} Bc6 {[%emt 0:01:49]} 23. b5 {[%emt 0:03:06]} Ba8 {[%emt 0:01:34]} 24. c5 {[%emt 0:03:36]} bxc5 {[%emt 0:01:26]} 25. Rxc5 {[%emt 0:02:07]} d5 {[%emt 0:06:04]} 26. Rbc1 {[%emt 0:05:48]} d4 {[%emt 0:03:16]} 27. Rxf5 {[%emt 0:05:44]} gxf5 {[%emt 0:00:22]} 28. Bg5 {[%emt 0:00:19]} Kh8 {[%emt 0:07:48]} 29. Bd3 {[%emt 0:01:51]} Qd6 {[%emt 0:01:48]} 30. Qxa5 {[%emt 0:02:36]} Qg6 {[%emt 0:00:24]} 31. Qd2 {[%emt 0:01:45]} e5 {[%emt 0:00:38]} 32. Bf1 {[%emt 0:00:31]} h6 {[%emt 0:02:31]} 33. Be7 {[%emt 0:00:25]} Bxf3 {[%emt 0:00:17]} 34. a4 {[%emt 0:00:35]} e4 {[%emt 0:00:15]} 35. Qf2 {[%emt 0:00:30]} Be5 {[%emt 0:01:32]} 36. Rc6 {[%emt 0:00:22]} Qh5 {[%emt 0:00:53]} 37. gxf3 {[%emt 0:00:39]} Rg8+ {[%emt 0:00:59]} 38. Kh1 {[%emt 0:00:04]} e3 {[%emt 0:00:22]} 39. Qc2 {[%emt 0:00:47]} d3 {[%emt 0:00:37]} 40. Rxh6+ {[%emt 0:00:00]} Qxh6 {[%emt 0:00:00]} 41. Bxd3 {[%emt 0:00:27]} Qg7 {[%emt 0:02:11]} 0-1

[Event "WYCC 2018 G18"]
[Site "Halkidiki"]
[Date "2018.10.20"]
[Round "1"]
[White "Represa Perez, Mireya"]
[Black "Jie, Tianhui"]
[Result "1-0"]
[ECO "C70"]
[WhiteElo "2151"]
[BlackElo "1849"]
[Annotator "RC"]
[PlyCount "161"]
[EventDate "2018.10.20"]
[EventType "swiss"]
[EventCountry "GRE"]
[SourceTitle "playchess.com"]
[Source "ChessBase"]
[SourceQuality "1"]
[TimeControl "40/5400+30:1800+30"]

1. e4 e5 2. Nf3 Nc6 3. Bb5 a6 4. Ba4 b5 5. Bb3 Na5 6. O-O d6 7. Re1 Nxb3 8. axb3 c5 9. c3 Bb7 10. d4 Qc7 11. Nbd2 Nf6 12. d5 g6 13. Nf1 Bg7 14. h3 c4 15. N3d2 cxb3 16. Nxb3 O-O 17. Qd3 Nd7 18. Ng3 Nb6 19. Na5 Rac8 20. b3 Ba8 21. Be3 Nd7 22. c4 Nc5 23. Qc2 bxc4 24. Nxc4 Nxb3 25. Qxb3 Qxc4 26. Qxc4 Rxc4 27. Rxa6 f5 28. exf5 Bxd5 29. fxg6 hxg6 30. Rxd6 Bf7 31. f3 Rc2 32. Ne4 Ra8 33. Red1 Bf8 34. Rd8 Raa2 35. R1d2 Rxd2 36. Bxd2 Kg7 37. Bg5 Be6 38. Bf6+ Kf7 39. Bxe5 Be7 40. Rb8 Bf5 41. Nc3 Ra1+ 42. Kh2 Re1 43. f4 Bc5 44. Rb7+ Ke6 45. g4 Bd3 46. Rc7 Bf2 47. Rc6+ Kf7 48. Rf6+ Ke8 49. Rd6 Bf1 50. Nd5 Re2 51. Re6+ Kd7 52. Re7+ Kc6 53. Nc3 Re1 54. Re6+ Kd7 55. Rd6+ Kc8 56. Rd1 Rxd1 57. Nxd1 Bh4 58. Ne3 Bd3 59. f5 gxf5 60. Nxf5 Be1 61. Kg2 Kd7 62. Kf3 Ke6 63. Bg3 Bc3 64. Ne3 Bd4 65. Ng2 Bc2 66. Nf4+ Kf7 67. h4 Bd1+ 68. Ne2 Bc5 69. Bf2 Be7 70. h5 Kg7 71. Be3 Bh4 72. g5 Be1 73. Bf4 Bh4 74. Ke3 Be1 75. Kd3 Kh7 76. Be3 Kg7 77. Nf4 Bg3 78. Bd4+ Kg8 79. Nd5 Bh4 80. Ne7+ Kf7 81. h6 1-0

[Event "WYCC 2018 G18"]
[Site "Halkidiki"]
[Date "2018.10.20"]
[Round "1"]
[White "Rozman, Monika"]
[Black "Cosme Contreras, Trilce"]
[Result "1-0"]
[ECO "B90"]
[WhiteElo "2141"]
[BlackElo "1829"]
[Annotator "NA"]
[PlyCount "80"]
[EventDate "2018.10.20"]
[EventType "swiss"]
[EventCountry "GRE"]
[SourceTitle "playchess.com"]
[Source "ChessBase"]
[SourceQuality "1"]
[TimeControl "40/5400+30:1800+30"]

1. e4 {[%emt 0:00:00]} c5 {[%emt 0:00:00]} 2. Nf3 {[%emt 0:00:00]} d6 {[%emt 0:00:00]} 3. d4 {[%emt 0:00:00]} cxd4 {[%emt 0:00:05]} 4. Nxd4 {[%emt 0:00:00]} Nf6 {[%emt 0:00:07]} 5. Nc3 {[%emt 0:00:00]} a6 {[%emt 0:00:29]} 6. Be3 {[%emt 0:00:02]} e6 {[%emt 0:01:04]} 7. f3 {[%emt 0:00:16]} Qc7 {[%emt 0:02:41]} 8. g4 {[%emt 0:01:22]} Nc6 {[%emt 0:03:26]} 9. Qd2 {[%emt 0:04:24]} Be7 {[%emt 0:04:38]} 10. O-O-O {[%emt 0:03:16]} O-O {[%emt 0:05:00]} 11. g5 {[%emt 0:06:35]} Nd7 {[%emt 0:03:31]} 12. h4 {[%emt 0:03:17]} Nde5 {[%emt 0:03:44]} 13. f4 {[%emt 0:04:45]} Nxd4 {[%emt 0:07:26]} 14. Qxd4 {[%emt 0:04:38]} Nc6 $16 {[%emt 0:04:30] LiveBook: 5 Games} 15. Qd2 {[%emt 0:00:31]} b5 {[%emt 0:01:37]} 16. h5 {[%emt 0:02:21]} Qa5 {[%emt 0:09:03]} 17. Kb1 {[%emt 0:04:03]} b4 {[%emt 0:11:10]} 18. Ne2 {[%emt 0:01:35]} Bb7 {[%emt 0:01:58]} 19. Nc1 {[%emt 0:02:42]} d5 {[%emt 0:08:53]} 20. exd5 {[%emt 0:09:57]} Rfd8 {[%emt 0:01:44]} 21. dxc6 {[%emt 0:04:13]} Bxc6 {[%emt 0:08:34]} 22. Bd3 {[%emt 0:00:22]} Bxh1 {[%emt 0:01:27]} 23. Rxh1 {[%emt 0:00:17]} Qd5 {[%emt 0:01:47]} 24. Rh2 {[%emt 0:06:58]} Bc5 {[%emt 0:03:37]} 25. g6 {[%emt 0:03:24]} fxg6 {[%emt 0:04:06]} 26. hxg6 {[%emt 0:01:04]} h6 {[%emt 0:00:55]} 27. Bxc5 {[%emt 0:03:05]} Qxc5 {[%emt 0:00:18]} 28. Qe2 {[%emt 0:00:25]} Qd6 {[%emt 0:01:24]} 29. Bc4 {[%emt 0:08:39]} Qxf4 {[%emt 0:02:23]} 30. Bxe6+ {[%emt 0:00:17]} Kh8 {[%emt 0:00:07]} 31. Nd3 {[%emt 0:11:16]} Qf6 {[%emt 0:08:28]} 32. Bf7 {[%emt 0:00:33]} Ra7 {[%emt 0:00:41]} 33. Qf2 {[%emt 0:01:32]} Qxf2 {[%emt 0:00:58]} 34. Rxf2 {[%emt 0:00:14]} Re7 {[%emt 0:00:07]} 35. b3 {[%emt 0:01:28]} Re4 {[%emt 0:00:42]} 36. Kb2 {[%emt 0:01:39]} a5 {[%emt 0:00:44]} 37. Bc4 {[%emt 0:01:06]} Rb8 {[%emt 0:00:29]} 38. Nc5 {[%emt 0:01:08]} Rg4 {[%emt 0:00:21]} 39. Nd7 {[%emt 0:00:33]} Rc8 {[%emt 0:00:32]} 40. Ne5 {[%emt 0:00:00]} Rg5 1-0